Cogmind - Beta 12 @@@ ROGUE MODE // 2023.10.31 @ 00:57:48 Player: Figgis Result: Destroyed by G-67 Veteran with Plasma Rifle Performance ------------- Evolutions (6) 3000 Regions Visited (17) 3400 Robots Destroyed (50) 250 Value Destroyed (1477) 1477 Prototype IDs (24) 480 Alien Tech Used (3) 600 Bonus (328) 328 TOTAL SCORE: 9535 Bonus ------- Follower Combat Kills 28 Met Zhirov 300 Cogmind --------- Core Integrity 0/1150 Matter 288/300 Energy 100/100 System Corruption 0% Temperature Cool (12) Movement Core (50) Location -3/Proximity Caves Parts ------- > --- POWER (2) -------- (None) > --- PROPULSION (7) --- (None) > --- UTILITY (7) ------ Advanced Signal Interpreter Advanced Hacking Suite > --- WEAPON (3) ------- (None) > --- INVENTORY (5) ---- Improved Cesium-ion Thruster Advanced Transmission Jammer Experimental Power Shielding Makeshift Axe Force Lance Peak State ------------ > --- POWER ------------ Antimatter Reactor Heavy Antimatter Reactor > --- PROPULSION ------- Xenon Bombardment Thruster Improved Cesium-ion Thruster Improved Cesium-ion Thruster Improved Cesium-ion Thruster Field Propulsion Drive Field Propulsion Drive Impulse Thruster > --- UTILITY ---------- Small Storage Unit Advanced Sensor Array Advanced Signal Interpreter Advanced Melee Analysis Suite Improved Armor Integrity Analyzer Improved Phase Shifter Improved Shield Generator > --- WEAPON ----------- Lance Lance Force Lance > --- INVENTORY -------- Light Nuclear Core VTOL Module Improved Cesium-ion Thruster Matter Compressor Transmission Jammer Improved Field Recycling Unit Quantum Rifle Makeshift Axe [Rating: 109] Favorites ----------- Power Ion Engine Engine Ion Engine Power Core Light Nuclear Core Reactor Antimatter Reactor Propulsion Aluminum Leg Leg Aluminum Leg Flight Unit Improved Cesium-ion Thruster Utility Large Storage Unit Device Improved Heat Sink Storage Large Storage Unit Processor Advanced Signal Interpreter Hackware Advanced Hacking Suite Protection Hardened Light Armor Plating Weapon Spread Laser Energy Gun Spread Laser Energy Cannon Particle Cannon Ballistic Gun Heavy Assault Rifle Ballistic Cannon Light Cannon Launcher Mini Grenade Launcher Special Weapon Mining Laser Slashing Weapon Makeshift Axe Piercing Weapon Lance Special Melee Weapon Improved Datajack Build | -11 -10 -10 -9 -9 -9 -8 -8 -7 -6 -5 -5 -5 -4 -4 -4 -4 -3 ------- Run | Jun Mat Min Mat Min Exi Min Mat Fac Fac Fac Was Fac Fac Upp Upp Zhi Pro Slots Evolved 12 | . . . 2 . . . 2 2 2 2 . . 2 . . . . Power 1 | . . . . . . . . . . 1 . . . . . . . Propulsion 5 | . . . . . . . 2 1 . 1 . . 1 . . . . Utility 5 | . . . 1 . . . . 1 2 . . . 1 . . . . Weapon 1 | . . . 1 . . . . . . . . . . . . . . Parts Attached 135 | 3 12 3 20 4 . 11 14 9 9 . . 17 12 6 3 8 4 Power 18 | 1 1 . 2 1 . 1 2 1 2 . . 3 1 1 . 2 . Engine 12 | 1 1 . 2 1 . 1 2 1 1 . . 2 . . . . . Core 4 | . . . . . . . . . 1 . . 1 . 1 . 1 . Reactor 2 | . . . . . . . . . . . . . 1 . . 1 . Propulsion 41 | 2 3 2 2 2 . 5 6 5 1 . . 7 3 1 1 . 1 Treads . | . . . . . . . . . . . . . . . . . . Leg 14 | 2 3 2 2 2 . 3 . . . . . . . . . . . Wheel . | . . . . . . . . . . . . . . . . . . Hover . | . . . . . . . . . . . . . . . . . . Flight 27 | . . . . . . 2 6 5 1 . . 7 3 1 1 . 1 Utility 43 | . 5 . 5 1 . 2 5 1 5 . . 3 6 1 1 6 2 Device 23 | . 1 . 2 1 . 1 2 . 4 . . 2 3 1 . 4 2 Storage 5 | . 4 . . . . . 1 . . . . . . . . . . Processor 4 | . . . . . . . . . . . . . 3 . 1 . . Hackware 4 | . . . . . . . 1 . 1 . . 1 . . . 1 . Protection 7 | . . . 3 . . 1 1 1 . . . . . . . 1 . Artifact . | . . . . . . . . . . . . . . . . . . Weapon 33 | . 3 1 11 . . 3 1 2 1 . . 4 2 3 1 . 1 Energy Gun 10 | . 1 . 7 . . 2 . . . . . . . . . . . Energy Cannon 3 | . 1 . 1 . . . . 1 . . . . . . . . . Ballistic Gun 5 | . 1 . 2 . . . . 1 . . . 1 . . . . . Ballistic Cannon 2 | . . 1 . . . . 1 . . . . . . . . . . Launcher 1 | . . . . . . 1 . . . . . . . . . . . Special Weapon 1 | . . . 1 . . . . . . . . . . . . . . Impact Weapon . | . . . . . . . . . . . . . . . . . . Slashing Weapon 1 | . . . . . . . . . . . . . . . . . 1 Piercing Weapon 9 | . . . . . . . . . . . . 3 2 3 1 . . Special Melee Weapon 1 | . . . . . . . . . 1 . . . . . . . . Unidentified Prototypes 8 | . . . 1 . . . . 2 . . . . . 1 . 4 . Parts Lost 50 | . 2 7 2 2 . 12 . 1 . . . 5 3 1 . . 15 Power 9 | . 1 1 . 1 . 1 . 1 . . . 1 1 . . . 2 Propulsion 19 | . 1 3 . 1 . 3 . . . . . 1 2 . . . 8 Utility 11 | . . 1 . . . 3 . . . . . 2 . . . . 5 Weapon 11 | . . 2 2 . . 5 . . . . . 1 . 1 . . . Highest Loss Streak 9 | . 2 7 2 1 . 6 . 1 . . . 5 2 2 . . 9 To Critical Strikes . | . . . . . . . . . . . . . . . . . . Average Slot Usage (%) 91 | . 92 98 96 99 100 67 72 82 89 82 80 77 82 92 99 100 76 Engine 8 | . 13 13 11 10 11 8 9 6 . . . 4 1 . . . . Leg 16 | . 28 27 22 21 22 20 . . . . . . . . . . . Flight 10 | . . . . . . 1 36 38 33 29 29 33 33 36 36 36 28 Device 10 | . 7 13 2 11 11 7 8 7 22 23 21 8 14 19 15 13 8 Storage 9 | . 13 14 11 11 11 10 7 7 6 5 5 5 5 5 5 5 4 Processor 1 | . . . . . . . . . . . . . 8 10 14 13 9 Protection 5 | . . . 16 11 11 1 3 14 7 . . . . . . . . Energy Gun 9 | . 8 . 15 22 22 15 . . . . . . . . . . . Energy Cannon 3 | . 5 13 6 . . . . . . . . . . . . . . Ballistic Gun 6 | . 13 8 9 11 11 . . 5 6 5 5 3 . . . . . Piercing Weapon 2 | . . . . . . . . . . . . 5 14 10 14 15 10 Naked Turns . | . . . . . . . . . . . . . . . . . . Heaviest Build 46 | 3 31 33 41 40 40 40 19 28 27 25 25 34 40 46 45 45 45 Greatest Support 45 | 3 20 20 20 20 20 20 24 30 30 30 30 36 44 45 45 45 45 Greatest Overweight (x) 2 | . 1 2 2 1 1 2 . . . . . . . 1 . . 1 Average Overweight (x) . | . . . 1 1 1 . . . . . . . . . . . . Largest Inventory Capacity 20 | 5 20 15 15 15 15 15 8 8 8 8 8 8 8 8 8 8 8 Average Capacity 12 | 5 9 15 15 15 15 14 7 8 8 8 8 8 8 8 8 8 7 Most Carried 15 | 5 9 12 15 15 15 15 8 8 8 8 8 8 8 8 8 8 8 Average Carried 10 | 3 6 10 12 14 15 13 6 7 7 7 7 7 7 7 6 7 7 Final Capacity 15 | 5 15 15 15 15 15 5 8 8 8 8 8 8 8 8 8 8 5 Final Carried 15 | 5 9 10 15 15 15 5 8 8 8 8 7 8 7 8 7 8 5 Class Distribution -------------------- 33% | Mutant 29% | Scavenger-Tank 26% | Sprinter 5% | Tank Dominant Class ---------------- Mutant | -10/Materials Mutant | -10/Mines Tank | -9/Materials Scavenger-Tank | -9/Mines Scavenger-Tank | -9/Exiles Mutant | -8/Mines Sprinter | -8/Materials Sprinter | -7/Factory Sprinter | -6/Factory Sprinter | -5/Factory Sprinter | -5/Waste Hacker-Sprinter | -5/Factory Sprinter | -4/Factory Sprinter | -4/Upper Caves Sprinter | -4/Upper Caves Sprinter | -4/Zhirov Sprinter | -3/Proximity Caves Resources | -11 -10 -10 -9 -9 -9 -8 -8 -7 -6 -5 -5 -5 -4 -4 -4 -4 -3 ----------- Run | Jun Mat Min Mat Min Exi Min Mat Fac Fac Fac Was Fac Fac Upp Upp Zhi Pro Matter Collected 1632 | 230 165 18 152 138 . 94 . 90 . . . 200 201 177 98 . 69 Remotely . | . . . . . . . . . . . . . . . . . . Salvage Created 1346 | . 435 68 373 94 . 253 . . . . . . 65 49 . . 9 Parts 88 | . 29 11 25 8 . 8 . . . . . . 5 2 . . . Haulers Intercepted 1 | . . . 1 . . . . . . . . . . . . . . Recyclers Shooed 1 | . 1 . . . . . . . . . . . . . . . . Parts Field Recycled . | . . . . . . . . . . . . . . . . . . Retrieved Matter . | . . . . . . . . . . . . . . . . . . Parts Self-Destructed 8 | . . . . . . . . . . . . . . 5 . . 3 Prevented . | . . . . . . . . . . . . . . . . . . Kills | -11 -10 -10 -9 -9 -9 -8 -8 -7 -6 -5 -5 -5 -4 -4 -4 -4 -3 ------- Run | Jun Mat Min Mat Min Exi Min Mat Fac Fac Fac Was Fac Fac Upp Upp Zhi Pro Combat Hostiles Destroyed 43 | . 12 5 8 6 . 9 . . . . . . . 2 . . 1 Melee 3 | . . . . . . . . . . . . . . 2 . . 1 Guns 32 | . 11 3 4 6 . 8 . . . . . . . . . . . Cannons 7 | . 1 2 4 . . . . . . . . . . . . . . AOE 1 | . . . . . . 1 . . . . . . . . . . . Classes Destroyed 8 | . 2 . 4 . . 1 . . . . . . . . . . 1 Worker 1 | . . . . . . 1 . . . . . . . . . . . Hauler 1 | . . . 1 . . . . . . . . . . . . . . Operator 1 | . . . 1 . . . . . . . . . . . . . . Drone 1 | . . . . . . . . . . . . . . . . . 1 Watcher 4 | . . . 2 . . . . . . . . . 2 . . . . Swarmer 13 | . 3 5 . 3 . . . . . . . . . 2 . . . Grunt 26 | . 9 . 6 2 . 9 . . . . . . . . . . . Sentry 2 | . . . 2 . . . . . . . . . . . . . . Best Kill Streak 4 | . 3 2 2 2 . 4 . . . . . . 1 2 . . 1 Combat Bots Only 3 | . 3 2 2 2 . 3 . . . . . . . 2 . . 1 Max Kills in Single Turn 2 | . 1 2 1 1 . 1 . . . . . . 1 1 . . 1 Gunslinging . | . . . . . . . . . . . . . . . . . . Exploded 1 | . . . . . . 1 . . . . . . . . . . . Melee 1 | . . . . . . . . . . . . . . 1 . . 1 Uniques/NPCs Destroyed 1 | . . . . 1 . . . . . . . . . . . . . YI-UF0 (-9/Mines) Combat | -11 -10 -10 -9 -9 -9 -8 -8 -7 -6 -5 -5 -5 -4 -4 -4 -4 -3 -------- Run | Jun Mat Min Mat Min Exi Min Mat Fac Fac Fac Was Fac Fac Upp Upp Zhi Pro Damage Taken 5956 | . 538 692 404 542 . 1041 126 243 85 13 . 254 306 255 . . 1457 Core 1766 | . 151 82 52 49 . 234 44 42 25 . . 16 138 93 . . 840 Absorbed by Shields 273 | . . . . . . . 52 59 8 . . . 12 25 . . 117 Redirected to Shielding 94 | . . . . . . . 20 63 11 . . . . . . . . Core Remaining (%) 71 | 100 . 6 . . . 16 92 94 97 . . 98 . . . . . Volleys Fired 139 | . 49 9 25 11 . 33 2 6 4 . . . . . . . . Largest 3 | . 2 2 3 3 . 3 1 1 1 . . . . . . . . Hottest 198 | . 88 103 198 153 . 195 44 28 28 . . . . . . . . Shots Fired 279 | . 97 18 63 33 . 56 2 6 4 . . . . . . . . Gun 239 | . 89 8 48 33 . 51 . 6 4 . . . . . . . . Cannon 34 | . 8 10 14 . . . 2 . . . . . . . . . . Launcher 5 | . . . . . . 5 . . . . . . . . . . . Special 1 | . . . 1 . . . . . . . . . . . . . . Kinetic 102 | . 49 9 17 11 . 4 2 6 4 . . . . . . . . Thermal 172 | . 48 9 46 22 . 47 . . . . . . . . . . . Explosive 5 | . . . . . . 5 . . . . . . . . . . . Electromagnetic . | . . . . . . . . . . . . . . . . . . Robot Hit Streak 14 | . 12 3 12 7 . 14 1 4 2 . . . . . . . . Robot Miss Streak 8 | . 3 4 5 8 . 5 1 1 1 . . . . . . . . Penetration Max . | . . . . . . . . . . . . . . . . . . Secondary Targets 1 | . . . . 1 . . . . . . . . . . . . . Max Gunslinging Chain 1 | . . . . 1 . . . . . . . . . . . . . Shots Hit Robots 214 | . 66 8 42 25 . 51 1 4 4 1 . . 4 5 . . 3 Core Hits 170 | . 26 6 34 22 . 77 . 1 . . . . . 2 . . 2 Critical Kills . | . . . . . . . . . . . . . . . . . . Critical Parts Destroyed . | . . . . . . . . . . . . . . . . . . Critical Strikes 3 | . . . . . . . . . . . . . . 1 . . 2 Impale 3 | . . . . . . . . . . . . . . 1 . . 2 Melee Attacks 37 | . . . . . . . . . 2 1 . 2 10 15 . . 7 Impact . | . . . . . . . . . . . . . . . . . . Slashing 2 | . . . . . . . . . . . . . . . . . 2 Piercing 32 | . . . . . . . . . . . . 2 10 15 . . 5 Sneak Attacks 2 | . . . . . . . . . . . . . 2 . . . . Combat Hostiles . | . . . . . . . . . . . . . . . . . . Follow-up Attacks 4 | . . . . . . . . . . . . . 1 3 . . . Damage Inflicted 3530 | . 696 150 677 342 . 912 25 85 55 . . . 288 171 . . 129 Guns 2233 | . 628 38 416 342 . 669 . 85 55 . . . . . . . . Cannons 438 | . 66 112 235 . . . 25 . . . . . . . . . . Explosions 243 | . . . . . . 243 . . . . . . . . . . . Melee 587 | . . . . . . . . . . . . . 288 171 . . 128 Ramming 3 | . 2 . . . . . . . . . . . . . . . 1 Kinetic 704 | . 294 38 104 90 . 13 25 85 55 . . . . . . . . Thermal 1993 | . 400 112 573 252 . 656 . . . . . . . . . . . Explosive 243 | . . . . . . 243 . . . . . . . . . . . Electromagnetic . | . . . . . . . . . . . . . . . . . . Impact . | . . . . . . . . . . . . . . . . . . Slashing . | . . . . . . . . . . . . . . . . . . Piercing 587 | . . . . . . . . . . . . . 288 171 . . 128 Highest Corruption 11 | . . . . . . . . 2 . . 10 11 . . . . . Average Corruption 10 | . . . . . . . . 1 . . 10 10 . . . . . Corruption Purged . | . . . . . . . . . . . . . . . . . . Corruption Blocked . | . . . . . . . . . . . . . . . . . . Effects 12 | . . . . . . . . . . . . 12 . . . . . Message Errors 1 | . . . . . . . . . . . . 1 . . . . . Matter Fused 6 | . . . . . . . . . . . . 6 . . . . . Heat Flow Errors 1 | . . . . . . . . . . . . 1 . . . . . Data Loss (major) 1 | . . . . . . . . . . . . 1 . . . . . Misdirections 3 | . . . . . . . . . . . . 3 . . . . . Overload Shots . | . . . . . . . . . . . . . . . . . . Overflow Damage 150 | . 3 6 8 . . 1 . . . . . . 93 19 . . 20 Projectiles 17 | . 3 6 8 . . . . . . . . . . . . . . Explosions 1 | . . . . . . 1 . . . . . . . . . . . Melee 132 | . . . . . . . . . . . . . 93 19 . . 20 Knockbacks . | . . . . . . . . . . . . . . . . . . Impact . | . . . . . . . . . . . . . . . . . . Kinetic . | . . . . . . . . . . . . . . . . . . Secondary . | . . . . . . . . . . . . . . . . . . Self-Inflicted Damage 157 | . . . . . . 157 . . . . . . . . . . . Shots 5 | . . . . . . 5 . . . . . . . . . . . Rammed 1 | . . . . . . . . . . . . . . . . . 1 Targets Rammed 2 | . 1 . . . . . . . . . . . . . . . 1 Kicked 1 | . 1 . . . . . . . . . . . . . . . . Crushed . | . . . . . . . . . . . . . . . . . . Highest Temperature 578 | . 96 20 381 199 . 578 10 308 . . . 393 168 349 360 196 14 Average Temperature 110 | . 30 15 155 110 . 200 4 87 . . . 147 67 134 129 65 5 Received Heat Transfer 1381 | . 279 9 207 141 . 477 30 16 9 . . 27 27 . . . 159 Effects 18 | . . . 4 . . 6 . 1 . . . 1 . . 6 . . Shutdowns 4 | . . . . . . 2 . . . . . 1 . . 1 . . Energy Bleed 5 | . . . 1 . . 1 . 1 . . . . . . 2 . . Interference 5 | . . . 2 . . 1 . . . . . . . . 2 . . Matter Decay 1 | . . . . . . 1 . . . . . . . . . . . Short Circuit 3 | . . . 1 . . 1 . . . . . . . . 1 . . Siege Activations . | . . . . . . . . . . . . . . . . . . Robots Corrupted . | . . . . . . . . . . . . . . . . . . Combat Hostiles . | . . . . . . . . . . . . . . . . . . Parts Fried . | . . . . . . . . . . . . . . . . . . Impact Corruptions . | . . . . . . . . . . . . . . . . . . Robots Melted . | . . . . . . . . . . . . . . . . . . Combat Hostiles . | . . . . . . . . . . . . . . . . . . Parts Melted 4 | . 1 1 1 . . 1 . . . . . . . . . . . Heat Transferred 3054 | . 836 185 893 315 . 825 . . . . . . . . . . . Parts Sabotaged . | . . . . . . . . . . . . . . . . . . Parts Stolen . | . . . . . . . . . . . . . . . . . . Parts Stripped . | . . . . . . . . . . . . . . . . . . Power Chain Reactions . | . . . . . . . . . . . . . . . . . . Missiles Intercepted . | . . . . . . . . . . . . . . . . . . Alert | -11 -10 -10 -9 -9 -9 -8 -8 -7 -6 -5 -5 -5 -4 -4 -4 -4 -3 ------- Run | Jun Mat Min Mat Min Exi Min Mat Fac Fac Fac Was Fac Fac Upp Upp Zhi Pro Peak Influence 645 | . 256 154 233 195 . 129 320 304 216 184 109 645 455 . . . . Initial 242 | . . 37 . 40 . . . 145 82 105 64 76 242 . . . . Average 105 | . 130 71 75 49 . 59 141 204 125 132 92 293 310 . . . . Maximum Alert Level 2 | . 1 . 1 . . . 1 1 1 . . 2 2 . . . . Low Security (%) 83 | 100 75 100 92 100 . 100 71 35 86 100 100 41 . . . . . Level 1 14 | . 24 . 7 . . . 28 64 13 . . 32 96 . . . . Level 2 1 | . . . . . . . . . . . . 25 3 . . . . Level 3 . | . . . . . . . . . . . . . . . . . . Level 4 . | . . . . . . . . . . . . . . . . . . Level 5 . | . . . . . . . . . . . . . . . . . . High Security . | . . . . . . . . . . . . . . . . . . Max Security . | . . . . . . . . . . . . . . . . . . Squads Dispatched 15 | . 3 . 1 . . . 2 3 1 1 . 1 2 . . . 1 Investigation 3 | . 1 . . . . . . 1 . . . 1 . . . . . Extermination . | . . . . . . . . . . . . . . . . . . Reinforcement 11 | . 2 . 1 . . . 2 2 1 1 . . 2 . . . . Assault 1 | . . . . . . . . . . . . . . . . . 1 Garrison . | . . . . . . . . . . . . . . . . . . Intercept . | . . . . . . . . . . . . . . . . . . Searches Triggered 1 | . . . . . . . . . . . . 1 . . . . . Construction Impeded . | . . . . . . . . . . . . . . . . . . Haulers Reinforced . | . . . . . . . . . . . . . . . . . . Active Scanning Responses . | . . . . . . . . . . . . . . . . . . Cargo Convoy Interrupts . | . . . . . . . . . . . . . . . . . . Stealth | -11 -10 -10 -9 -9 -9 -8 -8 -7 -6 -5 -5 -5 -4 -4 -4 -4 -3 --------- Run | Jun Mat Min Mat Min Exi Min Mat Fac Fac Fac Was Fac Fac Upp Upp Zhi Pro Distress Signals 10 | . 3 . 1 . . . 1 . 1 . . . . . . . 4 Communications Jammed . | . . . . . . . . . . . . . . . . . . Distress Signals . | . . . . . . . . . . . . . . . . . . Times Spotted 251 | . 25 24 15 8 . 12 23 22 6 4 3 37 17 13 1 . 41 Peak Tracking Total 19 | . 6 17 3 3 . 3 17 11 4 3 3 14 16 9 1 . 19 Tactical Retreats 33 | . 3 . . 1 . . 3 3 2 . . 10 3 1 . . 7 Traps | -11 -10 -10 -9 -9 -9 -8 -8 -7 -6 -5 -5 -5 -4 -4 -4 -4 -3 ------- Run | Jun Mat Min Mat Min Exi Min Mat Fac Fac Fac Was Fac Fac Upp Upp Zhi Pro Traps Triggered 10 | . 2 . . . . . . . 1 1 . 3 1 . . . 2 Indirectly . | . . . . . . . . . . . . . . . . . . Trap Hack Attempts . | . . . . . . . . . . . . . . . . . . Triggered . | . . . . . . . . . . . . . . . . . . Disarmed . | . . . . . . . . . . . . . . . . . . Reprogrammed . | . . . . . . . . . . . . . . . . . . Reused . | . . . . . . . . . . . . . . . . . . Traps Extracted . | . . . . . . . . . . . . . . . . . . Installed . | . . . . . . . . . . . . . . . . . . Triggered 1 | . . . . . . . . . . . . . . . . . 1 Machines | -11 -10 -10 -9 -9 -9 -8 -8 -7 -6 -5 -5 -5 -4 -4 -4 -4 -3 ---------- Run | Jun Mat Min Mat Min Exi Min Mat Fac Fac Fac Was Fac Fac Upp Upp Zhi Pro Machines Disabled 5 | . . 1 . 1 . . . . . . . . . 1 . . 2 Max in Single Turn 1 | . . . . 1 . . . . . . . . . 1 . . 1 Garrison Access 1 | . . . . . . . . 1 . . . . . . . . . Machines Repaired . | . . . . . . . . . . . . . . . . . . Machines Sabotaged . | . . . . . . . . . . . . . . . . . . Overloaded Fab Kills . | . . . . . . . . . . . . . . . . . . Hacking | -11 -10 -10 -9 -9 -9 -8 -8 -7 -6 -5 -5 -5 -4 -4 -4 -4 -3 --------- Run | Jun Mat Min Mat Min Exi Min Mat Fac Fac Fac Was Fac Fac Upp Upp Zhi Pro Machines Accessed 57 | . 7 . 5 1 . . 3 17 6 4 . 4 . 1 . 9 . Terminals 35 | . 7 . 5 1 . . 3 10 4 2 . 3 . . . . . Fabricators 3 | . . . . . . . . 3 . . . . . . . . . Repair Stations 1 | . . . . . . . . . 1 . . . . . . . . Recycling Units 5 | . . . . . . . . 3 1 1 . . . . . . . Scanalyzers 1 | . . . . . . . . . . 1 . . . . . . . Garrison Access 2 | . . . . . . . . 1 . . . 1 . . . . . Total Hacks 153 | . 21 . 10 2 . . 11 33 12 7 . 8 . 1 . 48 . Successful 89 | . 7 . 3 2 . . 9 11 4 4 . . . 1 . 48 . Failed 62 | . 13 . 7 . . . 1 22 8 3 . 8 . . . . . Catastrophic 12 | . 2 . 1 . . . . 6 2 . . 1 . . . . . Database Lockouts 2 | . 1 . . . . . 1 . . . . . . . . . . Manual 26 | . 7 . 8 . . . 6 2 2 1 . . . . . . . Terminals 82 | . 21 . 10 2 . . 11 20 8 4 . 6 . . . . . Fabricators 4 | . . . . . . . . 4 . . . . . . . . . Repair Stations 1 | . . . . . . . . . 1 . . . . . . . . Recycling Units 13 | . . . . . . . . 8 3 2 . . . . . . . Scanalyzers 1 | . . . . . . . . . . 1 . . . . . . . Garrison Access 3 | . . . . . . . . 1 . . . 2 . . . . . Terminal Hacks 80 | . 7 . 3 2 . . 9 6 1 3 . . . 1 . 48 . Record 39 | . . . . 2 . . . . . . . . . 1 . 36 . Part Schematic 4 | . . . . . . . . . . . . . . . . 4 . Robot Analysis 16 | . 4 . 2 . . . 4 1 . 1 . . . . . 4 . Prototype ID Bank 9 | . 1 . . . . . 1 2 1 . . . . . . 4 . Open DSF 1 | . . . . . . . . 1 . . . . . . . . . Branch Access Points 1 | . . . . . . . . . . 1 . . . . . . . Emergency Access Points 1 | . 1 . . . . . . . . . . . . . . . . Alert Level 1 | . . . . . . . 1 . . . . . . . . . . Locate Traps 3 | . . . . . . . 1 2 . . . . . . . . . Dispatch Records 1 | . 1 . . . . . . . . . . . . . . . . Transport Status 1 | . . . 1 . . . . . . . . . . . . . . Investigation Status 1 | . . . . . . . . . . 1 . . . . . . . Registered Components 1 | . . . . . . . 1 . . . . . . . . . . Zone Layout 1 | . . . . . . . 1 . . . . . . . . . . Fabricator Hacks 1 | . . . . . . . . 1 . . . . . . . . . Network Status 1 | . . . . . . . . 1 . . . . . . . . . Repair Station Hacks . | . . . . . . . . . . . . . . . . . . Recycling Unit Hacks 7 | . . . . . . . . 3 3 1 . . . . . . . Process 2 | . . . . . . . . 1 1 . . . . . . . . Report Inventory 2 | . . . . . . . . 1 1 . . . . . . . . Retrieve Matter 3 | . . . . . . . . 1 1 1 . . . . . . . Scanalyzer . | . . . . . . . . . . . . . . . . . . Garrison Access Hacks 1 | . . . . . . . . 1 . . . . . . . . . Seal Access 1 | . . . . . . . . 1 . . . . . . . . . Unauthorized Hacks . | . . . . . . . . . . . . . . . . . . Terminals . | . . . . . . . . . . . . . . . . . . Fabricators . | . . . . . . . . . . . . . . . . . . Repair Stations . | . . . . . . . . . . . . . . . . . . Recycling Units . | . . . . . . . . . . . . . . . . . . Scanalyzers . | . . . . . . . . . . . . . . . . . . Garrison Access . | . . . . . . . . . . . . . . . . . . Data Cores Recovered 1 | . . . 1 . . . . . . . . . . . . . . Used 1 | . . . 1 . . . . . . . . . . . . . . Hacking Detections 43 | . 7 . 5 1 . . 2 15 5 4 . 4 . . . . . Full Trace Events 3 | . 1 . . . . . . 1 . . . 1 . . . . . Feedback Events . | . . . . . . . . . . . . . . . . . . Feedback Blocked . | . . . . . . . . . . . . . . . . . . Robot Schematics Acquired . | . . . . . . . . . . . . . . . . . . Robots Built . | . . . . . . . . . . . . . . . . . . Authchips . | . . . . . . . . . . . . . . . . . . Time . | . . . . . . . . . . . . . . . . . . Total Robot Build Rating . | . . . . . . . . . . . . . . . . . . Part Schematics Acquired 4 | . . . . . . . . . . . . . . . . 4 . Parts Built . | . . . . . . . . . . . . . . . . . . Authchips . | . . . . . . . . . . . . . . . . . . Time . | . . . . . . . . . . . . . . . . . . Total Part Build Rating . | . . . . . . . . . . . . . . . . . . Parts Repaired . | . . . . . . . . . . . . . . . . . . Time . | . . . . . . . . . . . . . . . . . . Parts Recycled . | . . . . . . . . . . . . . . . . . . Recycled Matter 49 | . . . . . . . . 19 30 . . . . . . . . Retrieved Matter 49 | . . . . . . . . 19 30 . . . . . . . . Retrieved Components . | . . . . . . . . . . . . . . . . . . Parts Scanalyzed . | . . . . . . . . . . . . . . . . . . Part Schematics Acquired . | . . . . . . . . . . . . . . . . . . Parts Damaged . | . . . . . . . . . . . . . . . . . . Bothacking | -11 -10 -10 -9 -9 -9 -8 -8 -7 -6 -5 -5 -5 -4 -4 -4 -4 -3 ------------ Run | Jun Mat Min Mat Min Exi Min Mat Fac Fac Fac Was Fac Fac Upp Upp Zhi Pro Used RIF Installer . | . . . . . . . . . . . . . . . . . . Robots Hacked 1 | . . . . . . . . . 1 . . . . . . . . Non-combat 1 | . . . . . . . . . 1 . . . . . . . . Combat . | . . . . . . . . . . . . . . . . . . Robot Hacks Applied 1 | . . . . . . . . . 1 . . . . . . . . parse_system 1 | . . . . . . . . . 1 . . . . . . . . Relay Couplers Released . | . . . . . . . . . . . . . . . . . . Fabnet Peak Effective % . | . . . . . . . . . . . . . . . . . . Robots Rewired . | . . . . . . . . . . . . . . . . . . Allies Hacked . | . . . . . . . . . . . . . . . . . . Hacks Repelled . | . . . . . . . . . . . . . . . . . . Allies | -11 -10 -10 -9 -9 -9 -8 -8 -7 -6 -5 -5 -5 -4 -4 -4 -4 -3 -------- Run | Jun Mat Min Mat Min Exi Min Mat Fac Fac Fac Was Fac Fac Upp Upp Zhi Pro Total Allies 4 | . . 3 . . . . . . . . 1 . . . . . . Largest Group 3 | . . 3 . . . . . . . . 1 . . . . . . Highest-Rated Group 40 | . . 40 . . . . . . . . 31 . . . . . . Highest-Rated Ally 31 | . . 16 . . . . . . . . 31 . . . . . . Total Orders . | . . . . . . . . . . . . . . . . . . Ally Attacks 35 | . . 29 . . . . . . . . 6 . . . . . . Total Damage 369 | . . 263 . . . . . . . . 106 . . . . . . Kills 4 | . . 4 . . . . . . . . . . . . . . . Allies Corrupted . | . . . . . . . . . . . . . . . . . . Allies Melted . | . . . . . . . . . . . . . . . . . . Intel | -11 -10 -10 -9 -9 -9 -8 -8 -7 -6 -5 -5 -5 -4 -4 -4 -4 -3 ------- Run | Jun Mat Min Mat Min Exi Min Mat Fac Fac Fac Was Fac Fac Upp Upp Zhi Pro Robot Analysis Total 15 | . 4 . 1 . . . 4 1 . 1 . . . . . 4 . Derelict Logs Recovered 6 | . . 1 . 1 . . . . . . . . . 2 2 . . Drone Launches . | . . . . . . . . . . . . . . . . . . Drone Recoveries . | . . . . . . . . . . . . . . . . . . Exploration | -11 -10 -10 -9 -9 -9 -8 -8 -7 -6 -5 -5 -5 -4 -4 -4 -4 -3 ------------- Run | Jun Mat Min Mat Min Exi Min Mat Fac Fac Fac Was Fac Fac Upp Upp Zhi Pro Turns Passed 8430 | 30 851 1089 942 1353 747 818 142 419 280 47 27 316 241 296 443 95 294 Spaces Moved 9888 | 39 479 544 396 610 394 445 369 1291 710 184 97 1098 596 728 756 250 902 Core 102 | 39 38 . . . . . . . . . . . . . . . 25 Treads . | . . . . . . . . . . . . . . . . . . Legs 2727 | . 441 544 396 610 394 342 . . . . . . . . . . . Wheels . | . . . . . . . . . . . . . . . . . . Hover . | . . . . . . . . . . . . . . . . . . Flight 7059 | . . . . . . 103 369 1291 710 184 97 1098 596 728 756 250 877 Fastest Speed 19 | 50 50 120 190 190 190 32 26 24 24 24 24 21 19 20 20 21 21 Average Speed 67 | 50 130 189 197 190 190 154 28 25 24 24 24 21 20 21 20 21 24 Slowest Speed 260 | 50 190 260 260 190 190 260 31 29 24 24 24 29 24 91 21 21 100 Overloaded Moves . | . . . . . . . . . . . . . . . . . . Propulsion Burnouts . | . . . . . . . . . . . . . . . . . . Robots Hopped 38 | . . . . . . 3 7 8 8 . . 6 3 . . . 3 Cave-ins Triggered . | . . . . . . . . . . . . . . . . . . Teleports 1 | . . . . . . . . . . . . . . . . 1 . Exploration Rate (%) 55 | 4 63 87 30 100 90 77 45 42 26 5 80 16 11 79 84 62 91 Regions Visited 17 Branch Regions 8 Pre-discovered Areas 6 | . . . . 1 . . . . . . . . . 1 1 3 . Known Exits Taken 5 | . . 1 . . . . 1 . . . . . . 1 1 1 . Unknown Exits Taken 10 | 1 1 . 1 1 1 1 . 1 1 . . 1 1 . . . . Scrap Searched 9 | . . 2 . 1 . 1 . . . . . . . . 3 . 2 Spaces Dug 10 | . . . . . . . . . . . . 2 4 4 . . . Terrain Destroyed 49 | . . . . . . 39 . . . . . 2 4 4 . . . Melee 10 | . . . . . . . . . . . . 2 4 4 . . . Projectile . | . . . . . . . . . . . . . . . . . . AOE 39 | . . . . . . 39 . . . . . . . . . . . Terrain Rammed . | . . . . . . . . . . . . . . . . . . Walls Destroyed . | . . . . . . . . . . . . . . . . . . Machines Disabled . | . . . . . . . . . . . . . . . . . . Actions | -11 -10 -10 -9 -9 -9 -8 -8 -7 -6 -5 -5 -5 -4 -4 -4 -4 -3 --------- Run | Jun Mat Min Mat Min Exi Min Mat Fac Fac Fac Was Fac Fac Upp Upp Zhi Pro Total 11335 | 48 620 584 507 780 393 526 399 1375 806 187 101 1170 695 846 1046 289 963 Wait 980 | . 64 26 39 151 . 32 . 53 62 . 1 48 71 92 287 22 32 Move 9801 | 38 478 543 395 609 393 438 356 1275 694 184 96 1086 589 727 755 249 896 Hop 33 | . . . . . . 3 5 7 7 . . 5 3 . . . 3 Pick Up 103 | 7 11 3 17 2 . 2 13 12 5 1 1 9 8 5 1 5 1 Fast Attach 30 | 1 2 . 8 2 . 1 . 1 3 . . 8 2 . . 1 1 Attach 71 | 2 5 2 8 1 . 9 6 4 3 . . 9 9 5 2 3 3 Detach 10 | . . . . . . . 1 . . . . 1 1 3 . 1 3 Swap 37 | . 5 1 4 1 . 1 8 4 3 . . . 1 2 1 6 . Drop 68 | . 5 . 11 3 . 7 8 13 5 1 3 2 2 2 . 2 4 Fire 139 | . 49 9 25 11 . 33 2 6 4 . . . . . . . . Melee 31 | . . . . . . . . . 2 1 . 2 9 10 . . 7 Ram 1 | . . . . . . . . . . . . . . . . . 1 Kick 1 | . 1 . . . . . . . . . . . . . . . . Crush . | . . . . . . . . . . . . . . . . . . Escape Stasis 30 | . . . . . . . . . 18 . . . . . . . 12 Rewire . | . . . . . . . . . . . . . . . . . . Trap . | . . . . . . . . . . . . . . . . . . Miscellaneous . | . . . . . . . . . . . . . . . . . . Route ------- -11/Junkyard -10/Materials (discovered 3 exits: *Mat x2 / [*Min]) -10/Mines (discovered 2 exits: *Mat x2) -9/Materials -9/Mines (discovered 3 exits: *Mat x2 / [*Exi]) -9/Exiles -8/Mines -8/Materials (discovered 3 exits: *Fac x2 / Sto) -7/Factory (discovered 3 exits: *Fac x2 / [*Low]) -6/Factory (discovered 2 exits: *Fac x2) -5/Factory (discovered 2 exits: Upp x2) -5/Waste -5/Factory -4/Factory -4/Upper Caves -4/Upper Caves (discovered 2 exits: Res / *Zhi) -4/Zhirov -3/Proximity Caves History --------- Turn | Location | Event 18 | -11/Junkyard | Discovered new exit (range 15) 31 | -11/Junkyard | Entered Materials 92 | -10/Materials | Central database locked down 208 | -10/Materials | Discovered new exit (range 8) 244 | -10/Materials | Discovered new exit (range 16) 302 | -10/Materials | Build established: Mutant 593 | -10/Materials | Core integrity fell below 50% 631 | -10/Materials | Discovered new exit (range 5) 882 | -10/Materials | Entered Mines 888 | -10/Mines | Assisted by bots powering up and referring to "LRC-V3" 1002 | -10/Mines | Received a Rocket Launcher from a helpful Derelict 1041 | -10/Mines | Identified exit to Materials 1122 | -10/Mines | Found a hidden stash of uninstalled traps 1849 | -10/Mines | Discovered exit to Materials (range 6) 1911 | -10/Mines | Assembled infested the area 1916 | -10/Mines | Assisted by a Guerilla fighting off Assembled 1963 | -10/Mines | Core integrity fell below 20% 1971 | -10/Mines | Entered Materials 1971 | -9/Materials | Evolved 2 slots: Utility x1, Weapon x1 2002 | -9/Materials | Lost 7 parts (1p3n1u2w) 2357 | -9/Materials | Build established: Scavenger-Tank 2692 | -9/Materials | Discovered new exit (range 16) 2827 | -9/Materials | Build established: Tank 2913 | -9/Materials | Entered Mines 2915 | -9/Mines | Met a Derelict bent on vengeance 3038 | -9/Mines | Discovered new exit (range 8) 3075 | -9/Mines | Learned 8 Materials zone layouts 3240 | -9/Mines | Build established: Scavenger-Tank 3593 | -9/Mines | Destroyed YI-UF0 3814 | -9/Mines | Discovered new exit (range 7) 3883 | -9/Mines | Deemed a non-threat by the Exiles lab entrance 3883 | -9/Mines | Discovered new exit (range 5) 4109 | -9/Mines | Learned location of Storage (-8) 4266 | -9/Mines | Entered Exiles 4266 | -9/Exiles | Found Exiles lab abandoned 4992 | -9/Exiles | Discovered new exit (range 11) 5013 | -9/Exiles | Entered Mines 5101 | -8/Mines | Lost 4 parts (2u2w) 5392 | -8/Mines | Build established: Mutant 5604 | -8/Mines | Core integrity fell below 50% 5639 | -8/Mines | Lost 6 parts (1p2n1u2w) 5807 | -8/Mines | Core integrity fell below 20% 5829 | -8/Mines | Discovered new exit (range 4) 5831 | -8/Mines | Entered Materials 5831 | -8/Materials | Evolved 2 slots: Propulsion x2 5832 | -8/Materials | Identified exit to Factory 5832 | -8/Materials | Identified exit to Storage 5875 | -8/Materials | Central database locked down 5973 | -8/Materials | Entered Factory 5973 | -7/Factory | Evolved 2 slots: Propulsion x1, Utility x1 5983 | -7/Factory | Identified exit to DSF 6128 | -7/Factory | Build established: Sprinter 6281 | -7/Factory | Discovered new exit (range 15) 6323 | -7/Factory | Discovered new exit (range 7) 6385 | -7/Factory | Discovered new exit (range 11) 6392 | -7/Factory | Entered another Factory area 6392 | -6/Factory | Evolved 2 slots: Utility x2 6582 | -6/Factory | Discovered new exit (range 8) 6667 | -6/Factory | Discovered new exit (range 14) 6672 | -6/Factory | Entered another Factory area 6672 | -5/Factory | Evolved 2 slots: Power x1, Propulsion x1 6714 | -5/Factory | Identified exit to Upper Caves 6719 | -5/Factory | Sucked down chute 6719 | -5/Factory | Entered Waste 6720 | -5/Waste | Met a frightened Derelict 6721 | -5/Waste | Found Broken Enh. Force Lance 6723 | -5/Waste | Spotted C-40 Crusher 6728 | -5/Waste | Spotted C-40 Crusher 6729 | -5/Waste | Spotted C-40 Crusher 6734 | -5/Waste | EMP discharged 6734 | -5/Waste | System corruption reached 10% 6736 | -5/Waste | Spotted C-40 Crusher 6742 | -5/Waste | Discovered new exit (range 16) 6743 | -5/Waste | Spotted C-40 Crusher 6746 | -5/Waste | Entered Factory 6862 | -5/Factory | Discovered new exit (range 5) 7014 | -5/Factory | Lost 5 parts (1p1n2u1w) 7046 | -5/Factory | Search patrols dispatched 7062 | -5/Factory | Entered another Factory area 7062 | -4/Factory | Evolved 2 slots: Propulsion x1, Utility x1 7172 | -4/Factory | Discovered new exit (range 15) 7303 | -4/Factory | Entered Upper Caves 7370 | -4/Upper Caves | Found Alien Artifact 7371 | -4/Upper Caves | Identified Dimensional Node Initializer 7371 | -4/Upper Caves | Initialized slip node 7399 | -4/Upper Caves | Encountered a Warlord checkpoint 7594 | -4/Upper Caves | Discovered new exit (range 15) 7595 | -4/Upper Caves | Learned Research emergency access door positions 7599 | -4/Upper Caves | Identified exit to Upper Caves 7599 | -4/Upper Caves | Entered another Upper Caves area 7784 | -4/Upper Caves | Identified exit to Research 7791 | -4/Upper Caves | Learned location of Armory (-4) 7981 | -4/Upper Caves | Attracted the attention of an 0b10 checkpoint 8017 | -4/Upper Caves | Discovered new exit (range 5) 8018 | -4/Upper Caves | Identified exit to Zhirov 8042 | -4/Upper Caves | Entered Zhirov 8042 | -4/Zhirov | Discovered new exit (range 3) 8049 | -4/Zhirov | Met Zhirov 8064 | -4/Zhirov | Learned location of Quarantine (-3) 8064 | -4/Zhirov | Learned location of Command (-1) 8064 | -4/Zhirov | Learned location of Testing (-2) 8069 | -4/Zhirov | Zhirov requested help retrieving the SGEMP Prototype 8084 | -4/Zhirov | Found Alien Artifact 8085 | -4/Zhirov | Identified Integrated Dissipator 8085 | -4/Zhirov | Installed Integrated Dissipator, increased core heat dissipation (+20) 8114 | -4/Zhirov | Found Alien Artifact 8115 | -4/Zhirov | Identified Transdimensional Reconstructor 8115 | -4/Zhirov | Warped through subspace 8137 | -4/Zhirov | Identified exit to Proximity Caves 8137 | -4/Zhirov | Entered Proximity Caves 8148 | -3/Proximity Caves | Spotter reported a threat 8192 | -3/Proximity Caves | Spotted B-86 Titan 8223 | -3/Proximity Caves | Attracted the attention of an 0b10 checkpoint 8235 | -3/Proximity Caves | Spotter reported a threat 8263 | -3/Proximity Caves | Attracted the attention of an 0b10 outpost 8332 | -3/Proximity Caves | Lost 6 parts (1p2n3u) 8381 | -3/Proximity Caves | Core integrity fell below 50% 8418 | -3/Proximity Caves | Core integrity fell below 20% 8431 | -3/Proximity Caves | Destroyed by G-67 Veteran with Plasma Rifle Last Messages --------------- fun?" 08357_ KB-63Y(c): "Looks like you're headed in the direction of 0b10." 08370_ B-86 Titan activates siege mode. 08376_ Slug penetrates Wall. 08379_ Imp. Cesium-ion Thruster destroyed. 08379_ Dropped Lance. 08380_ Adv. Melee Analysis Suite destroyed. 08384_ Imp. Reaction Control System destroyed. 08384_ Antimatter Reactor destroyed. 08388_ Imp. Cesium-ion Thruster destroyed. 08388_ Field Propulsion Drive destroyed. 08389_ VTOL Module destroyed. 08389_ Data Receptor disabled. 08390_ Dispatcher launches Target Drone into the air. 08390_ Field Propulsion Drive destroyed. 08390_ Target Drone destroyed. 08399_ Storage Shell breached. 08417_ Imp. Cesium-ion Thruster destroyed. 08417_ Dropped Sml. Storage Unit. 08423_ Slammed into I-47 Archangel. Map ----- +----------------------------------------------------+ | ?????????????????????????????????????????????????? | | ?????????????????????????????????????????????????? | | ?????????????????????????????????????????????????? | | ?????????????????????????????????????????????????? | | ?????????????????????????????????????????????????? | | ?????????????????????????????????????????????????? | | ?????????????????????????????????????????????????? | | ?????????????????????????????????????????????????? | | ?????????????????????????????????????????????????? | | ?????????????????????????????????????????????????? | | ?????????????????????????????????????????????????? | | ?????????????????????????????????????????????????? | | ?????????????????????????????????????????????????? | | ?????????????????????????????????????????????????? | | ?????????????????????????????????????????????????? | | ?????????????????????????????????????????????????? | | ??#########################??????????????????????? | | ??# ]]] # #??????????????????????? | | ??#"" "]]] #+## #??????????????????????? | | ??#] [!! # #??????????????????????? | | ??#]" ! """" # #??????????????????????? | | ??#]" """" # #??????????????????????? | | ??#?" """" # #??????????????????????? | | ??# "" """" # #??????????????????????? | | ??# """""""" #l #??????????????????????? | | ??# "############### @####+#### ????????????? | | ??#" "# " ???????????? | | ??# "# i ?????????? | | ??#" "# ?????????? | | ??# "# ??????????? | | ??#" "# % ??????????? | | ??# " ""# ???????????? | | ??######## ??????????? | | ???????# g ???????????? | | ???????# Yg ???????????? | | ???????# ????????????? | | ???????# ????????????? | | ???????# ! ?????????????? | | ???????# ??????????????? | | ???????# ??????????????? | | ???????# ??????????????? | | ??###### ???????????????? | | ### *!!" ???????????????? | | # ?????????? | | # # #????????? | | #????????? | | #????????? | | %= #????????? | | ! ######???? | | #???? | +----------------------------------------------------+ Best States ------------- Heat Dissipation 67 Coolant Potential 80 Energy Generation 30 Energy Capacity 385 Matter Stores 300 Matter Capacity 300 Sight Range 16 Robot Scan Range 16 Terrain Scan Density 10 Jamming Range 12 Armor Coverage 150 Propulsion Shielding 66 Utility Shielding 66 Point Defense Rating 160 Phase Shifting 10 Evasion (%) 76 Melee Accuracy 8 Offensive Hacking 14 Defensive Hacking 10 Item Schematics ----------------- Imp. Arc Thrower | -4/Zhirov | Free Exp. Optical Array | -4/Zhirov | Free Exp. Heat Sink | -4/Zhirov | Free Assault Drone Bay | -4/Zhirov | Free Robot Schematics ------------------ None Fabricated ------------ Nothing Alien Tech Used ----------------- Dimensional Node Initializer Integrated Dissipator Transdimensional Reconstructor Achievements -------------- Subspace Traveler The Science Guy Challenges ------------ None Game ------ Seed WardroneMicroSword Manual? 0 Play Time 01:28:43 Cumulative 94.1 hours Start 2023.10.30 @ 23:29:32 End 2023.10.31 @ 00:57:48 Sessions 1 Manual Loads 0 Difficulty Rogue Special Mode None Game No. 155 Rogue 152 Adventurer 3 Explorer 0 Win Type - Total 0 Types 0/0/0/0/0/0/0/0/0 Lore% 42 Gallery% 54 Achievement% 39 Wizard Run 0 Options --------- ASCII 0 Keyboard 0 Movement Mouse Keybinds 0 Fullscreen 2 Font 18/SmallcapsGlow Map View 76x50 Tactical HUD 1 Map Filters NONE Filters NONE Steam 1 RUN: 1c611b54-15ca-4cc7-8ba5-54f61bc2a835